[Event "Late-Titled-Tuesday-Blitz-September-05-2023"]
[Site "Chess.com"]
[Date "2023.09.05"]
[Round "5"]
[White "Triumphmate"]
[Black "Dr_crypt"]
[Result "0-1"]
[WhiteElo "2523"]
[BlackElo "2389"]
[TimeControl "180+1"]
[EndTime "14:57:59 PDT"]
[Termination "Dr_crypt won by checkmate"]

1. e4 {[%clk 0:03:00.9]} 1... d5 {[%clk 0:03:00.2]} 2. exd5 {[%clk 0:02:59.3]}
2... Qxd5 {[%clk 0:03:00.7]} 3. Nc3 {[%clk 0:02:59.9]} 3... Qd6 {[%clk
0:03:00.9]} 4. g3 {[%clk 0:03:00.2]} 4... c6 {[%clk 0:03:00.2]} 5. Bg2 {[%clk
0:03:00.5]} 5... Bf5 {[%clk 0:03:00.2]} 6. Nge2 {[%clk 0:03:00.9]} 6... e6
{[%clk 0:03:00.8]} 7. d3 {[%clk 0:03:01.6]} 7... Qc7 {[%clk 0:02:59.8]} 8. Be3
{[%clk 0:03:00.6]} 8... Nf6 {[%clk 0:03:00.1]} 9. Qd2 {[%clk 0:03:01.2]} 9...
Nbd7 {[%clk 0:02:59.1]} 10. O-O-O {[%clk 0:03:01]} 10... O-O-O {[%clk
0:02:59.5]} 11. h3 {[%clk 0:02:59]} 11... h6 {[%clk 0:02:57.4]} 12. g4 {[%clk
0:02:59.6]} 12... Bh7 {[%clk 0:02:57.1]} 13. f4 {[%clk 0:03:00.3]} 13... Nd5
{[%clk 0:02:53.3]} 14. Nxd5 {[%clk 0:02:58.8]} 14... cxd5 {[%clk 0:02:52.7]} 15.
Qc3 {[%clk 0:02:53.8]} 15... Qxc3 {[%clk 0:02:51.4]} 16. Nxc3 {[%clk 0:02:49.1]}
16... Bc5 {[%clk 0:02:36.8]} 17. Bxc5 {[%clk 0:02:34]} 17... Nxc5 {[%clk
0:02:37.5]} 18. d4 {[%clk 0:02:34.8]} 18... Ne4 {[%clk 0:02:33]} 19. Nxe4 {[%clk
0:02:34.3]} 19... Bxe4 {[%clk 0:02:33.4]} 20. Bxe4 {[%clk 0:02:34.5]} 20... dxe4
{[%clk 0:02:34.3]} 21. c4 {[%clk 0:02:24]} 21... f5 {[%clk 0:02:23.5]} 22. Kc2
{[%clk 0:02:23.2]} 22... g5 {[%clk 0:02:20.2]} 23. Rhf1 {[%clk 0:02:03.1]} 23...
Rdf8 {[%clk 0:02:12.3]} 24. gxf5 {[%clk 0:01:39.8]} 24... exf5 {[%clk 0:02:08]}
25. Kd2 {[%clk 0:01:39.1]} 25... Rhg8 {[%clk 0:02:06.7]} 26. Ke3 {[%clk
0:01:37.9]} 26... g4 {[%clk 0:01:57.5]} 27. Rh1 {[%clk 0:01:30.1]} 27... g3
{[%clk 0:01:39.1]} 28. Rhg1 {[%clk 0:01:30.5]} 28... h5 {[%clk 0:01:38.2]} 29.
Rg2 {[%clk 0:01:08.5]} 29... h4 {[%clk 0:01:37.9]} 30. d5 {[%clk 0:01:08.9]}
30... b6 {[%clk 0:01:37]} 31. b4 {[%clk 0:01:08.4]} 31... Kd7 {[%clk 0:01:34.3]}
32. c5 {[%clk 0:01:07.5]} 32... bxc5 {[%clk 0:01:33.2]} 33. bxc5 {[%clk
0:01:08.4]} 33... Rb8 {[%clk 0:01:33]} 34. Kd4 {[%clk 0:00:57.9]} 34... Rge8
{[%clk 0:01:29.2]} 35. Rc2 {[%clk 0:00:52.2]} 35... e3 {[%clk 0:01:22.9]} 36.
Re2 {[%clk 0:00:47.3]} 36... Rb4+ {[%clk 0:01:15.2]} 37. Kd3 {[%clk 0:00:47.2]}
37... Ree4 {[%clk 0:00:59.3]} 38. c6+ {[%clk 0:00:10.7]} 38... Kd6 {[%clk
0:00:55.5]} 39. Rc2 {[%clk 0:00:08.5]} 39... Rbd4+ {[%clk 0:00:38.9]} 40. Ke2
{[%clk 0:00:07.4]} 40... Rxd1 {[%clk 0:00:38.7]} 41. Kxd1 {[%clk 0:00:04.4]}
41... Rd4+ {[%clk 0:00:17.3]} 42. Ke2 {[%clk 0:00:03.7]} 42... Kc7 {[%clk
0:00:16.1]} 43. Kxe3 {[%clk 0:00:03]} 43... Rxd5 {[%clk 0:00:16.3]} 44. Kf3
{[%clk 0:00:03]} 44... Rd6 {[%clk 0:00:15.2]} 45. Rc5 {[%clk 0:00:03.4]} 45...
Rxc6 {[%clk 0:00:14.4]} 46. Rxf5 {[%clk 0:00:03.7]} 46... Rc3+ {[%clk
0:00:14.7]} 47. Kg2 {[%clk 0:00:03.8]} 47... Rc2+ {[%clk 0:00:14.7]} 48. Kg1
{[%clk 0:00:04.6]} 48... Rh2 {[%clk 0:00:14]} 49. Rf7+ {[%clk 0:00:04]} 49...
Kd6 {[%clk 0:00:13.9]} 50. f5 {[%clk 0:00:03.2]} 50... Rxh3 {[%clk 0:00:13.1]}
51. Rxa7 {[%clk 0:00:03.9]} 51... Rh2 {[%clk 0:00:12]} 52. f6 {[%clk 0:00:04.4]}
52... Rf2 {[%clk 0:00:11.3]} 53. f7 {[%clk 0:00:04.2]} 53... Ke6 {[%clk
0:00:10.6]} 54. Ra4 {[%clk 0:00:02.4]} 54... h3 {[%clk 0:00:10]} 55. Ra3 {[%clk
0:00:02.8]} 55... h2+ {[%clk 0:00:08.7]} 56. Kh1 {[%clk 0:00:03.2]} 56... Rf1+
{[%clk 0:00:08.4]} 57. Kg2 {[%clk 0:00:03.7]} 57... h1=Q+ {[%clk 0:00:08.4]} 58.
Kxg3 {[%clk 0:00:04.2]} 58... Qg1+ {[%clk 0:00:06.2]} 59. Kh4 {[%clk 0:00:04.2]}
59... Rf4+ {[%clk 0:00:05.4]} 60. Kh3 {[%clk 0:00:04.2]} 60... Rxf7 {[%clk
0:00:04.8]} 61. Ra6+ {[%clk 0:00:03.2]} 61... Ke5 {[%clk 0:00:04.4]} 62. Ra5+
{[%clk 0:00:03.8]} 62... Kd4 {[%clk 0:00:04.5]} 63. Rg5 {[%clk 0:00:04.2]} 63...
Qxg5 {[%clk 0:00:03.3]} 64. a4 {[%clk 0:00:04.5]} 64... Rh7# {[%clk 0:00:03.9]}
0-1

[Event "Late-Titled-Tuesday-Blitz-September-05-2023"]
[Site "Chess.com"]
[Date "2023.09.05"]
[Round "5"]
[White "alexrustemov"]
[Black "Leo_C"]
[Result "1/2-1/2"]
[WhiteElo "2874"]
[BlackElo "2623"]
[TimeControl "180+1"]
[EndTime "14:58:02 PDT"]
[Termination "Game drawn - insufficient material"]

1. d4 {[%clk 0:03:00.9]} 1... Nf6 {[%clk 0:02:59.9]} 2. c4 {[%clk 0:03:01.2]}
2... e6 {[%clk 0:03:00.4]} 3. Nf3 {[%clk 0:03:01.4]} 3... d5 {[%clk 0:03:00.6]}
4. Bg5 {[%clk 0:03:00.3]} 4... Be7 {[%clk 0:02:58.9]} 5. e3 {[%clk 0:03:00.1]}
5... h6 {[%clk 0:02:55.3]} 6. Bh4 {[%clk 0:02:57.6]} 6... O-O {[%clk 0:02:54.9]}
7. Nc3 {[%clk 0:02:58]} 7... Nbd7 {[%clk 0:02:38.9]} 8. Rc1 {[%clk 0:02:56.3]}
8... c6 {[%clk 0:02:33.9]} 9. Bd3 {[%clk 0:02:56.4]} 9... b6 {[%clk 0:02:33.7]}
10. O-O {[%clk 0:02:55.6]} 10... Bb7 {[%clk 0:02:33.8]} 11. Qe2 {[%clk
0:02:54.8]} 11... c5 {[%clk 0:02:25.4]} 12. Rfd1 {[%clk 0:02:49.3]} 12... cxd4
{[%clk 0:02:02]} 13. Nxd4 {[%clk 0:02:39.2]} 13... Ne5 {[%clk 0:01:55.5]} 14.
cxd5 {[%clk 0:02:38]} 14... Nxd3 {[%clk 0:01:31.5]} 15. Qxd3 {[%clk 0:02:37.2]}
15... Nxd5 {[%clk 0:01:30.6]} 16. Bxe7 {[%clk 0:02:36]} 16... Qxe7 {[%clk
0:01:31.1]} 17. Nxd5 {[%clk 0:02:28.9]} 17... Bxd5 {[%clk 0:01:32]} 18. e4
{[%clk 0:02:25.2]} 18... Bb7 {[%clk 0:01:30]} 19. Qe3 {[%clk 0:02:21.8]} 19...
Rac8 {[%clk 0:01:23]} 20. f3 {[%clk 0:02:21.2]} 20... Rxc1 {[%clk 0:01:13.1]}
21. Rxc1 {[%clk 0:02:20.6]} 21... Rd8 {[%clk 0:01:10.4]} 22. Ne2 {[%clk
0:02:06.5]} 22... Rd7 {[%clk 0:01:04.8]} 23. a3 {[%clk 0:02:02.6]} 23... Ba6
{[%clk 0:01:03.2]} 24. Nc3 {[%clk 0:01:55.7]} 24... Rd3 {[%clk 0:01:01.2]} 25.
Qf2 {[%clk 0:01:56]} 25... Qd6 {[%clk 0:00:58.5]} 26. Qe1 {[%clk 0:01:37.9]}
26... Qd4+ {[%clk 0:00:53]} 27. Kh1 {[%clk 0:01:37.8]} 27... Rd2 {[%clk
0:00:43.4]} 28. Rd1 {[%clk 0:01:37.9]} 28... Rxd1 {[%clk 0:00:43.8]} 29. Qxd1
{[%clk 0:01:38]} 29... Qf2 {[%clk 0:00:43.9]} 30. Nb1 {[%clk 0:00:51.6]} 30...
Qxb2 {[%clk 0:00:29.9]} 31. h3 {[%clk 0:00:46.9]} 31... Bc4 {[%clk 0:00:20.7]}
32. Qd8+ {[%clk 0:00:38.9]} 32... Kh7 {[%clk 0:00:20.6]} 33. Nd2 {[%clk
0:00:39.7]} 33... Be2 {[%clk 0:00:17.1]} 34. Qd6 {[%clk 0:00:37.4]} 34... b5
{[%clk 0:00:12.5]} 35. Qb4 {[%clk 0:00:34.5]} 35... Qc1+ {[%clk 0:00:10.8]} 36.
Kh2 {[%clk 0:00:34.1]} 36... Qc7+ {[%clk 0:00:11]} 37. Kg1 {[%clk 0:00:32.5]}
37... a5 {[%clk 0:00:11.5]} 38. Qd4 {[%clk 0:00:31.3]} 38... e5 {[%clk
0:00:11.1]} 39. Qe3 {[%clk 0:00:27.6]} 39... Qc1+ {[%clk 0:00:08.2]} 40. Kh2
{[%clk 0:00:27]} 40... Bc4 {[%clk 0:00:08.3]} 41. Nxc4 {[%clk 0:00:25.2]} 41...
Qxc4 {[%clk 0:00:08.2]} 42. Qa7 {[%clk 0:00:23.1]} 42... a4 {[%clk 0:00:04.1]}
43. Qe7 {[%clk 0:00:21.1]} 43... Qb3 {[%clk 0:00:01.8]} 44. Qxe5 {[%clk
0:00:19.7]} 44... Qxa3 {[%clk 0:00:02.1]} 45. Qf5+ {[%clk 0:00:20.1]} 45... Kg8
{[%clk 0:00:02.4]} 46. Qc8+ {[%clk 0:00:20.2]} 46... Qf8 {[%clk 0:00:02.6]} 47.
Qb7 {[%clk 0:00:18.7]} 47... Qe8 {[%clk 0:00:02.9]} 48. Qa7 {[%clk 0:00:18.1]}
48... g6 {[%clk 0:00:03]} 49. h4 {[%clk 0:00:17.9]} 49... h5 {[%clk 0:00:02.3]}
50. g4 {[%clk 0:00:17.6]} 50... hxg4 {[%clk 0:00:02.4]} 51. fxg4 {[%clk
0:00:17.6]} 51... b4 {[%clk 0:00:02.7]} 52. h5 {[%clk 0:00:16.2]} 52... gxh5
{[%clk 0:00:02.6]} 53. gxh5 {[%clk 0:00:16.2]} 53... Qe5+ {[%clk 0:00:02.8]} 54.
Kg1 {[%clk 0:00:14.8]} 54... Qg5+ {[%clk 0:00:02.9]} 55. Kf2 {[%clk 0:00:14.9]}
55... Qxh5 {[%clk 0:00:03.3]} 56. Qxa4 {[%clk 0:00:14.5]} 56... Qh4+ {[%clk
0:00:03.1]} 57. Ke3 {[%clk 0:00:15]} 57... Qg3+ {[%clk 0:00:03.3]} 58. Kd4
{[%clk 0:00:15.1]} 58... Qc3+ {[%clk 0:00:03.5]} 59. Kd5 {[%clk 0:00:14.9]}
59... b3 {[%clk 0:00:04.2]} 60. Qe8+ {[%clk 0:00:11.9]} 60... Kg7 {[%clk
0:00:04.6]} 61. Qe7 {[%clk 0:00:11.3]} 61... Qf6 {[%clk 0:00:02.9]} 62. Qb7
{[%clk 0:00:10.4]} 62... b2 {[%clk 0:00:03]} 63. e5 {[%clk 0:00:11]} 63... Qe6+
{[%clk 0:00:02.4]} 64. Kd4 {[%clk 0:00:11]} 64... Qg4+ {[%clk 0:00:02.6]} 65.
Kc5 {[%clk 0:00:11.1]} 65... Qg6 {[%clk 0:00:01.7]} 66. Qxb2 {[%clk 0:00:10]}
66... Qe6 {[%clk 0:00:02]} 67. Qd4 {[%clk 0:00:09.7]} 67... f6 {[%clk
0:00:02.4]} 68. Qg1+ {[%clk 0:00:06.6]} 68... Kf7 {[%clk 0:00:02.6]} 69. exf6
{[%clk 0:00:06.1]} 69... Qxf6 {[%clk 0:00:03.2]} 70. Qd4 {[%clk 0:00:05.6]}
70... Qxd4+ {[%clk 0:00:03.3]} 71. Kxd4 {[%clk 0:00:05.6]} 1/2-1/2

[Event "Late-Titled-Tuesday-Blitz-September-05-2023"]
[Site "Chess.com"]
[Date "2023.09.05"]
[Round "5"]
[White "Garmendiarov"]
[Black "Chessbard1972"]
[Result "1-0"]
[WhiteElo "2358"]
[BlackElo "2499"]
[TimeControl "180+1"]
[EndTime "14:58:11 PDT"]
[Termination "Garmendiarov won by checkmate"]

1. e4 {[%clk 0:03:00.9]} 1... c5 {[%clk 0:02:58.9]} 2. Nf3 {[%clk 0:03:01]} 2...
a6 {[%clk 0:02:58.8]} 3. c3 {[%clk 0:03:01]} 3... d5 {[%clk 0:02:55.4]} 4. exd5
{[%clk 0:02:59.9]} 4... Qxd5 {[%clk 0:02:56]} 5. d4 {[%clk 0:03:00.6]} 5... Nf6
{[%clk 0:02:56.2]} 6. Be3 {[%clk 0:02:58.4]} 6... cxd4 {[%clk 0:02:54.6]} 7.
cxd4 {[%clk 0:02:48.5]} 7... Bg4 {[%clk 0:02:53.3]} 8. Be2 {[%clk 0:02:47.2]}
8... e6 {[%clk 0:02:52.4]} 9. Nc3 {[%clk 0:02:47.5]} 9... Qd6 {[%clk 0:02:52.6]}
10. O-O {[%clk 0:02:46.5]} 10... Nc6 {[%clk 0:02:52.3]} 11. h3 {[%clk
0:02:44.6]} 11... Bh5 {[%clk 0:02:51.8]} 12. Qb3 {[%clk 0:02:10.4]} 12... Qb4
{[%clk 0:02:50.4]} 13. Qc2 {[%clk 0:01:51.7]} 13... Be7 {[%clk 0:02:49]} 14. a3
{[%clk 0:01:51]} 14... Qd6 {[%clk 0:02:49.1]} 15. Rfd1 {[%clk 0:01:49.3]} 15...
O-O {[%clk 0:02:47.6]} 16. Rac1 {[%clk 0:01:22.3]} 16... Rfd8 {[%clk 0:02:44.1]}
17. Qb3 {[%clk 0:01:19.7]} 17... b5 {[%clk 0:02:39.2]} 18. a4 {[%clk 0:01:01]}
18... Na5 {[%clk 0:02:33.8]} 19. Qa2 {[%clk 0:00:46]} 19... b4 {[%clk
0:02:32.3]} 20. Nb1 {[%clk 0:00:46.4]} 20... Rac8 {[%clk 0:02:26.8]} 21. Nbd2
{[%clk 0:00:43.2]} 21... h6 {[%clk 0:02:19.6]} 22. Nc4 {[%clk 0:00:30.8]} 22...
Nxc4 {[%clk 0:02:19.1]} 23. Rxc4 {[%clk 0:00:30.7]} 23... a5 {[%clk 0:02:14.7]}
24. Rdc1 {[%clk 0:00:29.1]} 24... Rxc4 {[%clk 0:02:13.9]} 25. Qxc4 {[%clk
0:00:29]} 25... Qd5 {[%clk 0:02:11]} 26. Qc7 {[%clk 0:00:18.9]} 26... Bf8 {[%clk
0:02:06.4]} 27. Bc4 {[%clk 0:00:10.7]} 27... Qd6 {[%clk 0:02:05.6]} 28. Qxd6
{[%clk 0:00:10.2]} 28... Bxd6 {[%clk 0:02:04]} 29. Ne5 {[%clk 0:00:08.5]} 29...
Bxe5 {[%clk 0:01:56.7]} 30. dxe5 {[%clk 0:00:09.4]} 30... Nd5 {[%clk 0:01:55.7]}
31. Bc5 {[%clk 0:00:07.5]} 31... Rc8 {[%clk 0:01:46.7]} 32. Bxd5 {[%clk
0:00:07.7]} 32... exd5 {[%clk 0:01:46]} 33. Be3 {[%clk 0:00:08.1]} 33... Rc4
{[%clk 0:01:43]} 34. Rxc4 {[%clk 0:00:05.8]} 34... dxc4 {[%clk 0:01:42.5]} 35.
Bb6 {[%clk 0:00:06.6]} 35... c3 {[%clk 0:01:41.8]} 36. bxc3 {[%clk 0:00:06.9]}
36... bxc3 {[%clk 0:01:40.3]} 37. Bxa5 {[%clk 0:00:07]} 37... c2 {[%clk
0:01:37.9]} 38. Bd2 {[%clk 0:00:07.6]} 38... Kf8 {[%clk 0:01:36.9]} 39. Kf1
{[%clk 0:00:07.6]} 39... Ke7 {[%clk 0:01:36.7]} 40. Ke1 {[%clk 0:00:07.7]} 40...
Ke6 {[%clk 0:01:36.6]} 41. f4 {[%clk 0:00:07.7]} 41... Bd1 {[%clk 0:01:29.4]}
42. g4 {[%clk 0:00:07.1]} 42... Kd5 {[%clk 0:01:28.4]} 43. Bc1 {[%clk
0:00:05.1]} 43... Kc4 {[%clk 0:01:23.6]} 44. Kd2 {[%clk 0:00:04.4]} 44... Kb4
{[%clk 0:01:23.1]} 45. Ke3 {[%clk 0:00:04.7]} 45... Kxa4 {[%clk 0:01:22.9]} 46.
Ke4 {[%clk 0:00:05.1]} 46... Kb5 {[%clk 0:01:21.7]} 47. Kd5 {[%clk 0:00:05.3]}
47... Bf3+ {[%clk 0:01:15.3]} 48. Kd6 {[%clk 0:00:05.5]} 48... Bg2 {[%clk
0:01:12.7]} 49. h4 {[%clk 0:00:05.6]} 49... Bh3 {[%clk 0:01:11.9]} 50. Ke7
{[%clk 0:00:04]} 50... Bxg4 {[%clk 0:01:07.6]} 51. Kxf7 {[%clk 0:00:04.4]} 51...
Kc6 {[%clk 0:01:01.2]} 52. Kxg7 {[%clk 0:00:04.6]} 52... h5 {[%clk 0:01:00.6]}
53. Kf7 {[%clk 0:00:04]} 53... Kd5 {[%clk 0:00:56.2]} 54. Kf6 {[%clk 0:00:04.1]}
54... Bc8 {[%clk 0:00:40.2]} 55. f5 {[%clk 0:00:04.5]} 55... Ke4 {[%clk
0:00:37.6]} 56. e6 {[%clk 0:00:04.4]} 56... Kd5 {[%clk 0:00:36.3]} 57. e7 {[%clk
0:00:04.2]} 57... Bd7 {[%clk 0:00:36]} 58. Kf7 {[%clk 0:00:04.6]} 58... Ke5
{[%clk 0:00:34.5]} 59. f6 {[%clk 0:00:05.1]} 59... Kf5 {[%clk 0:00:33.4]} 60.
Bb2 {[%clk 0:00:03.5]} 60... Ba4 {[%clk 0:00:29]} 61. e8=Q {[%clk 0:00:03.3]}
61... Bxe8+ {[%clk 0:00:28.8]} 62. Kxe8 {[%clk 0:00:04.2]} 62... c1=Q {[%clk
0:00:28]} 63. Bxc1 {[%clk 0:00:04.7]} 63... Kxf6 {[%clk 0:00:28.4]} 64. Bg5+
{[%clk 0:00:04.7]} 64... Kg6 {[%clk 0:00:27.6]} 65. Ke7 {[%clk 0:00:05.6]} 65...
Kh7 {[%clk 0:00:26.4]} 66. Ke6 {[%clk 0:00:06.5]} 66... Kg6 {[%clk 0:00:26.4]}
67. Ke5 {[%clk 0:00:06.8]} 67... Kg7 {[%clk 0:00:25.5]} 68. Kf5 {[%clk
0:00:06.8]} 68... Kh7 {[%clk 0:00:25.9]} 69. Kf6 {[%clk 0:00:07.5]} 69... Kh8
{[%clk 0:00:24.8]} 70. Kg6 {[%clk 0:00:08.4]} 70... Kg8 {[%clk 0:00:25.3]} 71.
Kxh5 {[%clk 0:00:09]} 71... Kh8 {[%clk 0:00:26.2]} 72. Kh6 {[%clk 0:00:09.2]}
72... Kg8 {[%clk 0:00:27.1]} 73. h5 {[%clk 0:00:09.6]} 73... Kh8 {[%clk
0:00:28]} 74. Bf6+ {[%clk 0:00:09.4]} 74... Kg8 {[%clk 0:00:28.8]} 75. Kg6
{[%clk 0:00:09.6]} 75... Kf8 {[%clk 0:00:28.9]} 76. h6 {[%clk 0:00:10.2]} 76...
Ke8 {[%clk 0:00:28.9]} 77. h7 {[%clk 0:00:10.9]} 77... Kd7 {[%clk 0:00:29.8]}
78. h8=Q {[%clk 0:00:11.3]} 78... Kc6 {[%clk 0:00:30.7]} 79. Qd8 {[%clk
0:00:11.5]} 79... Kc5 {[%clk 0:00:30.7]} 80. Qd4+ {[%clk 0:00:11.4]} 80... Kc6
{[%clk 0:00:30.7]} 81. Bg5 {[%clk 0:00:10.9]} 81... Kb5 {[%clk 0:00:30.4]} 82.
Qc3 {[%clk 0:00:11.1]} 82... Kb6 {[%clk 0:00:30.4]} 83. Qc4 {[%clk 0:00:11.6]}
83... Kb7 {[%clk 0:00:30.7]} 84. Qc5 {[%clk 0:00:12.1]} 84... Kb8 {[%clk
0:00:31.1]} 85. Qc6 {[%clk 0:00:12.4]} 85... Ka7 {[%clk 0:00:31.5]} 86. Qb5
{[%clk 0:00:13]} 86... Ka8 {[%clk 0:00:31.5]} 87. Kf6 {[%clk 0:00:13.9]} 87...
Ka7 {[%clk 0:00:25.6]} 88. Ke6 {[%clk 0:00:14.8]} 88... Ka8 {[%clk 0:00:25.7]}
89. Kd6 {[%clk 0:00:15.7]} 89... Ka7 {[%clk 0:00:26.4]} 90. Kc7 {[%clk
0:00:16.6]} 90... Ka8 {[%clk 0:00:27.2]} 91. Qa4# {[%clk 0:00:16.5]} 1-0

[Event "Late-Titled-Tuesday-Blitz-September-05-2023"]
[Site "Chess.com"]
[Date "2023.09.05"]
[Round "5"]
[White "korason34"]
[Black "drinbet"]
[Result "1-0"]
[WhiteElo "2690"]
[BlackElo "2278"]
[TimeControl "180+1"]
[EndTime "14:58:22 PDT"]
[Termination "korason34 won by resignation"]

1. d4 {[%clk 0:03:00.9]} 1... Nf6 {[%clk 0:02:54.2]} 2. c4 {[%clk 0:03:00.4]}
2... e5 {[%clk 0:02:52.1]} 3. dxe5 {[%clk 0:02:59.2]} 3... Ng4 {[%clk 0:02:52]}
4. Bf4 {[%clk 0:02:55.7]} 4... Nc6 {[%clk 0:02:51]} 5. Nf3 {[%clk 0:02:53.8]}
5... Bb4+ {[%clk 0:02:46.9]} 6. Nbd2 {[%clk 0:02:52.4]} 6... Qe7 {[%clk
0:02:45.7]} 7. e3 {[%clk 0:02:48]} 7... Ngxe5 {[%clk 0:02:41.8]} 8. Nxe5 {[%clk
0:02:46.2]} 8... Nxe5 {[%clk 0:02:40]} 9. a3 {[%clk 0:02:46.9]} 9... Bxd2+
{[%clk 0:02:36.3]} 10. Qxd2 {[%clk 0:02:47.8]} 10... d6 {[%clk 0:02:31.8]} 11.
Be2 {[%clk 0:02:33.9]} 11... O-O {[%clk 0:02:30.2]} 12. O-O {[%clk 0:02:32.8]}
12... Be6 {[%clk 0:02:11.9]} 13. Qc3 {[%clk 0:02:31.7]} 13... f6 {[%clk
0:02:06.6]} 14. b4 {[%clk 0:02:27.2]} 14... Rad8 {[%clk 0:02:00.8]} 15. h3
{[%clk 0:02:20.2]} 15... Bf7 {[%clk 0:01:54.1]} 16. Bh2 {[%clk 0:02:10.7]} 16...
c6 {[%clk 0:01:41.3]} 17. Rad1 {[%clk 0:01:57.4]} 17... Rfe8 {[%clk 0:01:34.1]}
18. Rfe1 {[%clk 0:01:53.5]} 18... d5 {[%clk 0:01:25.7]} 19. cxd5 {[%clk
0:01:48.9]} 19... Bxd5 {[%clk 0:01:22.1]} 20. Bf1 {[%clk 0:01:45.3]} 20... Nf7
{[%clk 0:01:06.4]} 21. e4 {[%clk 0:01:03.8]} 21... Be6 {[%clk 0:01:06.4]} 22. f4
{[%clk 0:00:59.8]} 22... Rxd1 {[%clk 0:01:04.6]} 23. Rxd1 {[%clk 0:01:00.7]}
23... Rd8 {[%clk 0:01:04.4]} 24. Re1 {[%clk 0:00:56.4]} 24... a6 {[%clk
0:00:56.6]} 25. e5 {[%clk 0:00:52.9]} 25... f5 {[%clk 0:00:55.4]} 26. Bg3 {[%clk
0:00:44.7]} 26... Bd5 {[%clk 0:00:52.6]} 27. Bf2 {[%clk 0:00:43.3]} 27... b5
{[%clk 0:00:50.9]} 28. Be2 {[%clk 0:00:37.3]} 28... Qe6 {[%clk 0:00:49.7]} 29.
Rc1 {[%clk 0:00:35.7]} 29... Rd7 {[%clk 0:00:44.6]} 30. Bf3 {[%clk 0:00:35.6]}
30... Nd8 {[%clk 0:00:40.6]} 31. Bb6 {[%clk 0:00:32.8]} 31... h6 {[%clk
0:00:28.3]} 32. Bxd5 {[%clk 0:00:31.2]} 32... cxd5 {[%clk 0:00:24.6]} 33. Qc8
{[%clk 0:00:29.2]} 33... Qxb6+ {[%clk 0:00:21.8]} 34. Kh1 {[%clk 0:00:24]} 34...
Qe6 {[%clk 0:00:21.9]} 35. Rc7 {[%clk 0:00:17.8]} 35... Rxc7 {[%clk 0:00:19.8]}
36. Qxd8+ {[%clk 0:00:18.4]} 36... Kh7 {[%clk 0:00:18.5]} 37. Qxc7 {[%clk
0:00:19]} 37... d4 {[%clk 0:00:18.7]} 38. Qd6 {[%clk 0:00:16.9]} 38... Qc4
{[%clk 0:00:17.9]} 39. e6 {[%clk 0:00:17.3]} 39... Qc1+ {[%clk 0:00:16.2]} 40.
Kh2 {[%clk 0:00:17.7]} 40... Qe3 {[%clk 0:00:15.5]} 41. e7 {[%clk 0:00:16.7]}
41... d3 {[%clk 0:00:15.9]} 42. Qe5 {[%clk 0:00:15]} 42... Qxe5 {[%clk
0:00:15.3]} 43. fxe5 {[%clk 0:00:15.9]} 43... d2 {[%clk 0:00:15.9]} 44. e8=Q
{[%clk 0:00:16.1]} 44... d1=Q {[%clk 0:00:16.4]} 45. Qc8 {[%clk 0:00:15.5]}
45... Qd3 {[%clk 0:00:15.7]} 46. e6 {[%clk 0:00:13.2]} 46... Qe4 {[%clk
0:00:16.3]} 47. Qxa6 {[%clk 0:00:12.4]} 47... Qf4+ {[%clk 0:00:16.3]} 48. Kg1
{[%clk 0:00:12.6]} 48... Qc1+ {[%clk 0:00:17]} 49. Kf2 {[%clk 0:00:12.9]} 49...
Qd2+ {[%clk 0:00:17.7]} 50. Kf3 {[%clk 0:00:13.1]} 50... Qd3+ {[%clk 0:00:18.3]}
51. Kf4 {[%clk 0:00:11.2]} 51... Qe4+ {[%clk 0:00:19.2]} 52. Kg3 {[%clk
0:00:11.6]} 52... Qe5+ {[%clk 0:00:19.5]} 53. Kf2 {[%clk 0:00:11.1]} 53... Qd4+
{[%clk 0:00:19.5]} 54. Ke2 {[%clk 0:00:11.5]} 54... Qb2+ {[%clk 0:00:19.5]} 55.
Kd3 {[%clk 0:00:11.6]} 55... Qb3+ {[%clk 0:00:19.4]} 56. Kd4 {[%clk 0:00:11.7]}
56... Qc4+ {[%clk 0:00:19.7]} 57. Ke5 {[%clk 0:00:12.1]} 57... Qe4+ {[%clk
0:00:20]} 58. Kd6 {[%clk 0:00:12.4]} 58... f4 {[%clk 0:00:19.6]} 59. Qc6 {[%clk
0:00:11.4]} 59... Qg6 {[%clk 0:00:18.8]} 60. Kd7 {[%clk 0:00:10.1]} 60... Qf5
{[%clk 0:00:18.8]} 61. Qd6 {[%clk 0:00:09.4]} 61... g5 {[%clk 0:00:18]} 62. Kd8
{[%clk 0:00:09.3]} 62... g4 {[%clk 0:00:17.1]} 63. e7 {[%clk 0:00:09.1]} 63...
f3 {[%clk 0:00:17]} 64. gxf3 {[%clk 0:00:08.9]} 64... Qg5 {[%clk 0:00:15.8]} 65.
fxg4 {[%clk 0:00:08.2]} 65... h5 {[%clk 0:00:15.9]} 66. gxh5 {[%clk 0:00:08.1]}
66... Qh4 {[%clk 0:00:15.6]} 67. Qg6+ {[%clk 0:00:07.9]} 67... Kh8 {[%clk
0:00:14.9]} 68. Qh6+ {[%clk 0:00:07.8]} 68... Kg8 {[%clk 0:00:14.6]} 69. Qe6+
{[%clk 0:00:08.3]} 69... Kh8 {[%clk 0:00:14.5]} 70. Qe5+ {[%clk 0:00:07.2]}
70... Kh7 {[%clk 0:00:14.1]} 71. Kd7 {[%clk 0:00:07.3]} 71... Qxh3+ {[%clk
0:00:13.7]} 72. Kc7 {[%clk 0:00:07.1]} 72... Qg4 {[%clk 0:00:10.4]} 73. e8=Q
{[%clk 0:00:05.9]} 73... Qc4+ {[%clk 0:00:09.2]} 74. Qc5 {[%clk 0:00:05.1]}
74... Qf4+ {[%clk 0:00:06.3]} 75. Qee5 {[%clk 0:00:05.7]} 75... Qf7+ {[%clk
0:00:06.2]} 76. Qce7 {[%clk 0:00:06.2]} 76... Kh6 {[%clk 0:00:06.4]} 77. Qe3+
{[%clk 0:00:05.3]} 77... Kxh5 {[%clk 0:00:04.1]} 78. Qxf7+ {[%clk 0:00:05.4]}
78... Kg4 {[%clk 0:00:04.7]} 79. Qee6+ {[%clk 0:00:04.9]} 1-0